[Event "Betsys MČR v online bleskovém šachu 2021"]
[Site "Chess.com"]
[Date "2021.04.17"]
[Round "4"]
[White "Tomasbezdek07"]
[Black "Richter_Rudolf"]
[Result "1-0"]
[WhiteElo "1685"]
[BlackElo "1299"]
[TimeControl "180+1"]
[EndTime "9:36:02 PDT"]
[Termination "Uživatel Tomasbezdek07 zvítězil na čas"]

1. e4 {[%clk 0:03:00.9]} 1... c5 {[%clk 0:02:58.8]} 2. c3 {[%clk 0:03:00.4]}
2... Nf6 {[%clk 0:02:52.3]} 3. e5 {[%clk 0:02:59.8]} 3... Nd5 {[%clk 0:02:46.1]}
4. d4 {[%clk 0:03:00]} 4... e6 {[%clk 0:02:44.9]} 5. Bc4 {[%clk 0:02:57.6]} 5...
Nb6 {[%clk 0:02:31.1]} 6. Bb3 {[%clk 0:02:48.8]} 6... c4 {[%clk 0:01:46.7]} 7.
Bc2 {[%clk 0:02:46.6]} 7... d6 {[%clk 0:01:43.5]} 8. Nf3 {[%clk 0:02:45.3]} 8...
d5 {[%clk 0:01:42.7]} 9. O-O {[%clk 0:02:43.7]} 9... Nc6 {[%clk 0:01:41.6]} 10.
Bg5 {[%clk 0:02:39.2]} 10... Be7 {[%clk 0:01:41.2]} 11. Bxe7 {[%clk 0:02:38.8]}
11... Qxe7 {[%clk 0:01:41]} 12. Na3 {[%clk 0:02:36.2]} 12... O-O {[%clk
0:01:23.4]} 13. Nb5 {[%clk 0:02:34.5]} 13... a6 {[%clk 0:01:16.1]} 14. Nd6
{[%clk 0:02:27.8]} 14... Bd7 {[%clk 0:01:15.9]} 15. Nxb7 {[%clk 0:02:19.9]}
15... Rab8 {[%clk 0:01:02.8]} 16. Nc5 {[%clk 0:02:17.8]} 16... Bc8 {[%clk
0:00:57.9]} 17. Qd2 {[%clk 0:02:00.3]} 17... Nd7 {[%clk 0:00:22.4]} 18. Nxd7
{[%clk 0:01:56.6]} 18... Bxd7 {[%clk 0:00:22.1]} 19. b3 {[%clk 0:01:55.3]} 19...
Na5 {[%clk 0:00:22.1]} 20. Rab1 {[%clk 0:01:48.5]} 20... Rb7 {[%clk 0:00:19.6]}
21. b4 {[%clk 0:01:45.8]} 21... Nc6 {[%clk 0:00:19.2]} 22. a4 {[%clk 0:01:43.7]}
22... Rfb8 {[%clk 0:00:17.8]} 23. Rfe1 {[%clk 0:01:39]} 23... Na7 {[%clk
0:00:16.5]} 24. Ng5 {[%clk 0:01:34.9]} 24... h6 {[%clk 0:00:15.9]} 25. Nh3
{[%clk 0:01:33.7]} 25... Kf8 {[%clk 0:00:14.9]} 26. Re3 {[%clk 0:01:33.5]} 26...
Kg8 {[%clk 0:00:14.3]} 27. Rg3 {[%clk 0:01:33]} 27... g5 {[%clk 0:00:11.4]} 28.
f4 {[%clk 0:01:29.3]} 28... f6 {[%clk 0:00:09]} 29. exf6 {[%clk 0:01:26]} 29...
Qxf6 {[%clk 0:00:09.1]} 30. fxg5 {[%clk 0:01:26.4]} 30... hxg5 {[%clk
0:00:08.7]} 31. Nxg5 {[%clk 0:01:21.2]} 31... Be8 {[%clk 0:00:04.8]} 32. Nxe6+
{[%clk 0:01:19.1]} 1-0

[Event "Betsys MČR v online bleskovém šachu 2021"]
[Site "Chess.com"]
[Date "2021.04.17"]
[Round "4"]
[White "AdaTra"]
[Black "HerjoAnpe"]
[Result "1-0"]
[WhiteElo "1645"]
[BlackElo "1242"]
[TimeControl "180+1"]
[EndTime "9:36:02 PDT"]
[Termination "Uživatel AdaTra zvítězil po vzdání soupeře"]

1. d4 {[%clk 0:03:00.9]} 1... c5 {[%clk 0:02:56.6]} 2. c3 {[%clk 0:03:00]} 2...
cxd4 {[%clk 0:02:54.9]} 3. cxd4 {[%clk 0:03:00.9]} 3... d5 {[%clk 0:02:52.4]} 4.
Nf3 {[%clk 0:02:59.5]} 4... Bd7 {[%clk 0:02:52.5]} 5. Nc3 {[%clk 0:02:57.3]}
5... Nc6 {[%clk 0:02:51.8]} 6. Bf4 {[%clk 0:02:55.8]} 6... e6 {[%clk 0:02:49]}
7. e3 {[%clk 0:02:53.9]} 7... Bb4 {[%clk 0:02:48.3]} 8. Bd3 {[%clk 0:02:35.9]}
8... Nf6 {[%clk 0:02:47.3]} 9. O-O {[%clk 0:02:34.7]} 9... O-O {[%clk
0:02:44.7]} 10. Rc1 {[%clk 0:02:08.8]} 10... Re8 {[%clk 0:02:42.8]} 11. Ne5
{[%clk 0:02:07.1]} 11... Nxe5 {[%clk 0:02:38]} 12. Bxe5 {[%clk 0:02:06.7]} 12...
Qe7 {[%clk 0:02:32.9]} 13. Qf3 {[%clk 0:02:03.4]} 13... Rac8 {[%clk 0:02:20.6]}
14. Bxf6 {[%clk 0:01:56.2]} 14... Qxf6 {[%clk 0:02:19.3]} 15. Qxf6 {[%clk
0:01:55.8]} 15... gxf6 {[%clk 0:02:19.2]} 16. Ne2 {[%clk 0:01:53.3]} 16... Rxc1
{[%clk 0:02:17]} 17. Rxc1 {[%clk 0:01:54.2]} 17... Kh8 {[%clk 0:02:16.5]} 18.
Rc7 {[%clk 0:01:51.6]} 18... Rd8 {[%clk 0:02:10.3]} 19. g3 {[%clk 0:01:44.2]}
19... Be7 {[%clk 0:02:03.4]} 20. Rxb7 {[%clk 0:01:40.5]} 20... a5 {[%clk
0:01:59.4]} 21. a4 {[%clk 0:01:34.4]} 21... Bf8 {[%clk 0:01:54.2]} 22. Nc3
{[%clk 0:01:33.2]} 22... Bh6 {[%clk 0:01:53.5]} 23. Bb5 {[%clk 0:01:29.7]} 23...
Bc8 {[%clk 0:01:51.9]} 24. Rxf7 {[%clk 0:01:27.5]} 24... f5 {[%clk 0:01:43.2]}
25. Ra7 {[%clk 0:01:25.9]} 25... Rg8 {[%clk 0:01:35.3]} 26. Kf1 {[%clk
0:01:20.8]} 26... Rg4 {[%clk 0:01:29.6]} 27. h3 {[%clk 0:01:17.1]} 27... Rg8
{[%clk 0:01:25.3]} 28. Rxa5 {[%clk 0:01:15.9]} 28... Bd7 {[%clk 0:01:20.2]} 29.
Bxd7 {[%clk 0:01:13.8]} 29... Rb8 {[%clk 0:01:15.8]} 30. Bb5 {[%clk 0:01:12.2]}
30... Rg8 {[%clk 0:01:14.6]} 31. Bc6 {[%clk 0:01:10.7]} 31... Rg6 {[%clk
0:01:13.1]} 32. Ra8+ {[%clk 0:01:09.4]} 32... Kg7 {[%clk 0:01:12.1]} 33. a5
{[%clk 0:01:08.3]} 33... e5 {[%clk 0:01:10.7]} 34. Bxd5 {[%clk 0:01:05.2]} 34...
exd4 {[%clk 0:01:09.2]} 35. Rg8+ {[%clk 0:01:04.1]} 35... Kf6 {[%clk 0:01:08.3]}
36. Rxg6+ {[%clk 0:01:03.5]} 36... hxg6 {[%clk 0:01:08.3]} 37. exd4 {[%clk
0:01:03.2]} 37... Bf8 {[%clk 0:01:01.4]} 38. a6 {[%clk 0:01:01.3]} 38... Bd6
{[%clk 0:01:01.4]} 39. a7 {[%clk 0:00:59.3]} 39... Kg5 {[%clk 0:00:59.3]} 40.
a8=Q {[%clk 0:00:56.7]} 40... f4 {[%clk 0:00:58.2]} 41. Qd8+ {[%clk 0:00:54.6]}
41... Kh6 {[%clk 0:00:56.1]} 42. Qxd6 {[%clk 0:00:53]} 1-0

[Event "Betsys MČR v online bleskovém šachu 2021"]
[Site "Chess.com"]
[Date "2021.04.17"]
[Round "4"]
[White "trosecnik"]
[Black "Rozmetal"]
[Result "0-1"]
[WhiteElo "1840"]
[BlackElo "2121"]
[TimeControl "180+1"]
[EndTime "9:36:03 PDT"]
[Termination "Uživatel Rozmetal zvítězil na čas"]

1. e4 {[%clk 0:02:58.2]} 1... c5 {[%clk 0:02:59.2]} 2. c3 {[%clk 0:02:58.2]}
2... d5 {[%clk 0:02:57]} 3. exd5 {[%clk 0:02:59.1]} 3... Qxd5 {[%clk 0:02:57.2]}
4. d4 {[%clk 0:02:59.7]} 4... Nc6 {[%clk 0:02:57.3]} 5. Nf3 {[%clk 0:03:00.1]}
5... Nf6 {[%clk 0:02:56.8]} 6. Be2 {[%clk 0:02:59.3]} 6... Bf5 {[%clk
0:02:52.7]} 7. O-O {[%clk 0:02:54.3]} 7... e6 {[%clk 0:02:51.7]} 8. h3 {[%clk
0:02:43.3]} 8... Rd8 {[%clk 0:02:46.7]} 9. Be3 {[%clk 0:02:41.8]} 9... cxd4
{[%clk 0:02:42.1]} 10. cxd4 {[%clk 0:02:41.9]} 10... Be7 {[%clk 0:02:42.3]} 11.
Nc3 {[%clk 0:02:41.2]} 11... Qd6 {[%clk 0:02:39.8]} 12. Qb3 {[%clk 0:02:27.6]}
12... Qb4 {[%clk 0:02:31.8]} 13. Qxb4 {[%clk 0:02:24]} 13... Nxb4 {[%clk
0:02:31.1]} 14. Bb5+ {[%clk 0:02:21.2]} 14... Nd7 {[%clk 0:02:28.6]} 15. Ne5
{[%clk 0:02:18.5]} 15... f6 {[%clk 0:02:14.4]} 16. Nxd7 {[%clk 0:02:13.1]} 16...
Rxd7 {[%clk 0:02:14.5]} 17. Bxd7+ {[%clk 0:02:10.9]} 17... Kxd7 {[%clk
0:02:12.5]} 18. Rac1 {[%clk 0:02:10.1]} 18... a6 {[%clk 0:02:05.4]} 19. a3
{[%clk 0:02:08.6]} 19... Nd3 {[%clk 0:02:04.6]} 20. Ra1 {[%clk 0:01:41.2]} 20...
Nxb2 {[%clk 0:02:01.9]} 21. d5 {[%clk 0:01:39.7]} 21... e5 {[%clk 0:01:58.8]}
22. a4 {[%clk 0:01:25.1]} 22... Rc8 {[%clk 0:01:57.5]} 23. Ne2 {[%clk
0:00:59.1]} 23... Bb4 {[%clk 0:01:40.3]} 24. f4 {[%clk 0:00:48.1]} 24... Bd3
{[%clk 0:01:32.5]} 25. Rf2 {[%clk 0:00:46.5]} 25... e4 {[%clk 0:01:28.2]} 26.
Nd4 {[%clk 0:00:27.8]} 26... Nc4 {[%clk 0:01:27.5]} 27. Bc1 {[%clk 0:00:20.3]}
27... Bc5 {[%clk 0:01:26.8]} 28. Ne6 {[%clk 0:00:07.2]} 28... Bxf2+ {[%clk
0:01:18.1]} 29. Kxf2 {[%clk 0:00:08.1]} 29... g6 {[%clk 0:01:16.2]} 30. Be3
{[%clk 0:00:03.3]} 30... Kd6 {[%clk 0:01:14.9]} 31. Rc1 {[%clk 0:00:02.6]} 31...
Kxd5 {[%clk 0:01:14.3]} 0-1

[Event "Betsys MČR v online bleskovém šachu 2021"]
[Site "Chess.com"]
[Date "2021.04.17"]
[Round "4"]
[White "Simago"]
[Black "Jacques_se_mas"]
[Result "1-0"]
[WhiteElo "2098"]
[BlackElo "1736"]
[TimeControl "180+1"]
[EndTime "9:36:03 PDT"]
[Termination "Uživatel Simago zvítězil po vzdání soupeře"]

1. e4 {[%clk 0:03:00.9]} 1... e6 {[%clk 0:02:59.9]} 2. d4 {[%clk 0:03:00.7]}
2... b6 {[%clk 0:03:00.5]} 3. Nc3 {[%clk 0:03:00.5]} 3... Bb7 {[%clk 0:03:00.6]}
4. Bd3 {[%clk 0:03:00.2]} 4... Bb4 {[%clk 0:02:58.4]} 5. Bd2 {[%clk 0:02:59.8]}
5... Nf6 {[%clk 0:02:55]} 6. Qe2 {[%clk 0:02:58.7]} 6... d5 {[%clk 0:02:50.1]}
7. e5 {[%clk 0:02:57.9]} 7... Bxc3 {[%clk 0:02:48.4]} 8. bxc3 {[%clk 0:02:56.8]}
8... Ne4 {[%clk 0:02:48.1]} 9. f3 {[%clk 0:02:53.2]} 9... Nxd2 {[%clk 0:02:46]}
10. Qxd2 {[%clk 0:02:54.1]} 10... h6 {[%clk 0:02:41.5]} 11. Nh3 {[%clk
0:02:53.5]} 11... Nd7 {[%clk 0:02:40.4]} 12. O-O {[%clk 0:02:52.5]} 12... c5
{[%clk 0:02:36.5]} 13. f4 {[%clk 0:02:50.3]} 13... Qc7 {[%clk 0:02:28]} 14. f5
{[%clk 0:02:48.6]} 14... c4 {[%clk 0:02:23.7]} 15. fxe6 {[%clk 0:02:45.1]} 15...
fxe6 {[%clk 0:02:15.8]} 16. Bg6+ {[%clk 0:02:43.5]} 16... Kd8 {[%clk 0:02:16.3]}
17. Rf7 {[%clk 0:02:40.8]} 17... Rf8 {[%clk 0:02:16.2]} 18. Raf1 {[%clk
0:02:32.3]} 18... Rxf7 {[%clk 0:02:02.2]} 19. Rxf7 {[%clk 0:02:31.6]} 19... Kc8
{[%clk 0:02:00.6]} 20. Rxg7 {[%clk 0:02:29.9]} 20... Bc6 {[%clk 0:01:55.2]} 21.
Qxh6 {[%clk 0:02:26.5]} 21... Kb7 {[%clk 0:01:55]} 22. Qh7 {[%clk 0:02:25.5]}
22... Ba4 {[%clk 0:01:54.1]} 23. Ng5 {[%clk 0:02:18.4]} 23... Qc6 {[%clk
0:01:42.4]} 24. Nf7 {[%clk 0:02:16.3]} 24... Rf8 {[%clk 0:01:36.8]} 25. Nd6+
{[%clk 0:02:13.4]} 25... Ka6 {[%clk 0:01:33]} 26. Rf7 {[%clk 0:02:09.3]} 26...
Rxf7 {[%clk 0:01:18.6]} 27. Qxf7 {[%clk 0:02:07.8]} 27... Nb8 {[%clk 0:01:03.9]}
28. Qxe6 {[%clk 0:01:56.9]} 28... Nd7 {[%clk 0:00:56.8]} 29. Be8 {[%clk
0:01:49.3]} 29... Ka5 {[%clk 0:00:46.8]} 30. Bxd7 {[%clk 0:01:41.9]} 30... Qxd7
{[%clk 0:00:44.6]} 31. Qxd7 {[%clk 0:01:38.7]} 31... Bxd7 {[%clk 0:00:45.1]} 32.
h4 {[%clk 0:01:35.6]} 32... Ka4 {[%clk 0:00:43.3]} 33. h5 {[%clk 0:01:35]} 33...
Ka3 {[%clk 0:00:27.6]} 34. h6 {[%clk 0:01:34.7]} 34... Bf5 {[%clk 0:00:23.5]}
35. Nxf5 {[%clk 0:01:33.5]} 35... Kb2 {[%clk 0:00:23.2]} 36. h7 {[%clk
0:01:32.9]} 36... Kxc2 {[%clk 0:00:24]} 37. h8=Q {[%clk 0:01:32.2]} 37... Kxc3
{[%clk 0:00:24.9]} 38. Qh3+ {[%clk 0:01:31]} 38... Kb2 {[%clk 0:00:24.6]} 39.
Ne3 {[%clk 0:01:26.5]} 39... c3 {[%clk 0:00:24.4]} 40. e6 {[%clk 0:01:25.5]}
40... c2 {[%clk 0:00:22.3]} 41. Nxc2 {[%clk 0:01:24.5]} 1-0

[Event "Betsys MČR v online bleskovém šachu 2021"]
[Site "Chess.com"]
[Date "2021.04.17"]
[Round "4"]
[White "JJ95"]
[Black "VojtaT"]
[Result "1-0"]
[WhiteElo "2007"]
[BlackElo "1734"]
[TimeControl "180+1"]
[EndTime "9:36:04 PDT"]
[Termination "Uživatel JJ95 zvítězil po vzdání soupeře"]

1. e4 {[%clk 0:03:00.9]} 1... c5 {[%clk 0:02:57.7]} 2. c3 {[%clk 0:03:00.3]}
2... d5 {[%clk 0:02:48.9]} 3. exd5 {[%clk 0:03:00]} 3... Qxd5 {[%clk 0:02:49.1]}
4. d4 {[%clk 0:03:00.9]} 4... e5 {[%clk 0:02:46.8]} 5. dxe5 {[%clk 0:02:53]}
5... Qxd1+ {[%clk 0:02:46]} 6. Kxd1 {[%clk 0:02:53.3]} 6... Nc6 {[%clk
0:02:41.1]} 7. f4 {[%clk 0:02:53.1]} 7... Bg4+ {[%clk 0:02:38.8]} 8. Be2 {[%clk
0:02:49.2]} 8... Nh6 {[%clk 0:02:30.9]} 9. h3 {[%clk 0:02:12.2]} 9... Bxe2+
{[%clk 0:02:30.3]} 10. Kxe2 {[%clk 0:02:13.1]} 10... O-O-O {[%clk 0:02:25.7]}
11. Nf3 {[%clk 0:02:08.5]} 11... Nf5 {[%clk 0:02:24.9]} 12. Kf2 {[%clk
0:02:03.6]} 12... c4 {[%clk 0:02:20.6]} 13. g4 {[%clk 0:01:47.8]} 13... Bc5+
{[%clk 0:02:19.3]} 14. Kg2 {[%clk 0:01:39.7]} 14... Ne3+ {[%clk 0:02:19.1]} 15.
Bxe3 {[%clk 0:01:39.8]} 15... Bxe3 {[%clk 0:02:19.2]} 16. Kg3 {[%clk 0:01:34.3]}
16... Rhe8 {[%clk 0:02:00.1]} 17. Na3 {[%clk 0:01:33.2]} 17... Na5 {[%clk
0:01:35.4]} 18. Nb5 {[%clk 0:01:29.3]} 18... Bc5 {[%clk 0:01:27.2]} 19. Rad1
{[%clk 0:01:24.1]} 19... a6 {[%clk 0:01:26.2]} 20. Nbd4 {[%clk 0:01:13.4]} 20...
Nc6 {[%clk 0:01:11.5]} 21. Nxc6 {[%clk 0:01:12]} 21... bxc6 {[%clk 0:01:12.4]}
22. Ng5 {[%clk 0:00:57.2]} 22... f6 {[%clk 0:01:00.1]} 23. Rxd8+ {[%clk
0:00:51.5]} 23... Kxd8 {[%clk 0:00:59.7]} 24. Ne4 {[%clk 0:00:46.8]} 24... Be7
{[%clk 0:00:53.3]} 25. Rd1+ {[%clk 0:00:45.5]} 25... Kc7 {[%clk 0:00:52.6]} 26.
e6 {[%clk 0:00:41.7]} 26... g6 {[%clk 0:00:44.7]} 27. Rd7+ {[%clk 0:00:39.3]}
27... Kc8 {[%clk 0:00:44.7]} 28. Ra7 {[%clk 0:00:31.5]} 28... f5 {[%clk
0:00:44.3]} 29. Ra8+ {[%clk 0:00:30.9]} 1-0

[Event "Betsys MČR v online bleskovém šachu 2021"]
[Site "Chess.com"]
[Date "2021.04.17"]
[Round "4"]
[White "zarathutra"]
[Black "misa2009"]
[Result "1-0"]
[WhiteElo "1825"]
[BlackElo "1503"]
[TimeControl "180+1"]
[EndTime "9:36:09 PDT"]
[Termination "Uživatel zarathutra zvítězil matem"]

1. d4 {[%clk 0:03:00.9]} 1... Nf6 {[%clk 0:02:59.3]} 2. c4 {[%clk 0:03:00.9]}
2... e6 {[%clk 0:02:58.1]} 3. Nc3 {[%clk 0:02:59.5]} 3... d5 {[%clk 0:02:57.3]}
4. cxd5 {[%clk 0:02:59]} 4... exd5 {[%clk 0:02:57.4]} 5. Bg5 {[%clk 0:02:59.1]}
5... Bb4 {[%clk 0:02:55.9]} 6. e3 {[%clk 0:02:56.4]} 6... O-O {[%clk 0:02:54]}
7. Bd3 {[%clk 0:02:56.3]} 7... h6 {[%clk 0:02:51.5]} 8. Bh4 {[%clk 0:02:55.6]}
8... Be6 {[%clk 0:02:45.7]} 9. f3 {[%clk 0:02:50]} 9... Nc6 {[%clk 0:02:45.2]}
10. Ne2 {[%clk 0:02:48.5]} 10... a6 {[%clk 0:02:39.5]} 11. O-O {[%clk
0:02:47.9]} 11... Re8 {[%clk 0:02:35.7]} 12. a3 {[%clk 0:02:11.4]} 12... Ba5
{[%clk 0:02:33.5]} 13. b4 {[%clk 0:02:08.8]} 13... Bb6 {[%clk 0:02:33.5]} 14.
Nf4 {[%clk 0:02:00.1]} 14... Kh8 {[%clk 0:02:19.3]} 15. Bc2 {[%clk 0:01:47]}
15... g5 {[%clk 0:02:09.5]} 16. Nxe6 {[%clk 0:01:46.3]} 16... Rxe6 {[%clk
0:02:09]} 17. Bf2 {[%clk 0:01:43.2]} 17... a5 {[%clk 0:02:03.3]} 18. Qd3 {[%clk
0:01:40.9]} 18... axb4 {[%clk 0:02:01.5]} 19. Nxd5 {[%clk 0:00:55.7]} 19... Qxd5
{[%clk 0:01:52]} 20. Bb3 {[%clk 0:00:55.2]} 20... Qd7 {[%clk 0:01:45.3]} 21.
Bxe6 {[%clk 0:00:48.8]} 21... fxe6 {[%clk 0:01:43.2]} 22. axb4 {[%clk
0:00:41.5]} 22... Rxa1 {[%clk 0:01:42.3]} 23. Rxa1 {[%clk 0:00:41.1]} 23... Nxb4
{[%clk 0:01:41.2]} 24. Qg6 {[%clk 0:00:40.6]} 24... Qg7 {[%clk 0:01:35.4]} 25.
Ra8+ {[%clk 0:00:30.1]} 25... Ng8 {[%clk 0:01:34.8]} 26. Qxe6 {[%clk 0:00:26.9]}
26... Kh7 {[%clk 0:01:25.3]} 27. Bg3 {[%clk 0:00:23.2]} 27... Nc6 {[%clk
0:01:18.4]} 28. d5 {[%clk 0:00:18.3]} 28... Nb4 {[%clk 0:01:13.2]} 29. Be5
{[%clk 0:00:14.1]} 29... Qe7 {[%clk 0:00:58.1]} 30. Qxg8# {[%clk 0:00:11.4]} 1-0

[Event "Betsys MČR v online bleskovém šachu 2021"]
[Site "Chess.com"]
[Date "2021.04.17"]
[Round "4"]
[White "Fafin1"]
[Black "MaTpAt113"]
[Result "1-0"]
[WhiteElo "1192"]
[BlackElo "834"]
[TimeControl "180+1"]
[EndTime "9:36:15 PDT"]
[Termination "Uživatel Fafin1 zvítězil na čas"]

1. e4 {[%clk 0:03:00.9]} 1... c6 {[%clk 0:03:00.9]} 2. Nf3 {[%clk 0:02:59.5]}
2... d5 {[%clk 0:03:00.5]} 3. exd5 {[%clk 0:02:57.9]} 3... cxd5 {[%clk
0:02:59.7]} 4. Bb5+ {[%clk 0:02:55.1]} 4... Nc6 {[%clk 0:02:58.5]} 5. d4 {[%clk
0:02:53]} 5... Bf5 {[%clk 0:02:56.7]} 6. O-O {[%clk 0:02:50.4]} 6... e6 {[%clk
0:02:55.5]} 7. h3 {[%clk 0:02:46.6]} 7... Bd6 {[%clk 0:02:52.8]} 8. c3 {[%clk
0:02:45.9]} 8... Nf6 {[%clk 0:02:45.7]} 9. Bg5 {[%clk 0:02:43.2]} 9... h6 {[%clk
0:02:38.2]} 10. Bh4 {[%clk 0:02:39.8]} 10... g5 {[%clk 0:02:32.3]} 11. Bg3
{[%clk 0:02:38.2]} 11... Bxg3 {[%clk 0:02:27.6]} 12. fxg3 {[%clk 0:02:37.8]}
12... Ne4 {[%clk 0:02:18.9]} 13. Ne5 {[%clk 0:02:28.7]} 13... a6 {[%clk
0:01:55.6]} 14. Nxc6 {[%clk 0:02:27.6]} 14... Qc7 {[%clk 0:01:37.3]} 15. Ne5+
{[%clk 0:02:01.8]} 15... axb5 {[%clk 0:01:33.4]} 16. g4 {[%clk 0:01:59.1]} 16...
Bh7 {[%clk 0:01:23.9]} 17. Rxf7 {[%clk 0:01:56.2]} 17... Qc4 {[%clk 0:01:13.6]}
18. Nxc4 {[%clk 0:01:51.6]} 18... Kxf7 {[%clk 0:01:09.3]} 19. Ne5+ {[%clk
0:01:48.5]} 19... Ke7 {[%clk 0:01:06]} 20. Nd2 {[%clk 0:01:47.4]} 20... Ng3
{[%clk 0:00:34.2]} 21. Kh2 {[%clk 0:01:43.1]} 21... Ne4 {[%clk 0:00:26.1]} 22.
Nxe4 {[%clk 0:01:41]} 22... Bxe4 {[%clk 0:00:22.2]} 23. Qb3 {[%clk 0:01:33.4]}
23... Rhf8 {[%clk 0:00:15.8]} 24. Qxb5 {[%clk 0:01:29.3]} 24... Rad8 {[%clk
0:00:12.2]} 25. Qxb7+ {[%clk 0:01:26.4]} 25... Ke8 {[%clk 0:00:11.9]} 26. Qc6+
{[%clk 0:01:23.2]} 26... Ke7 {[%clk 0:00:10.5]} 27. Rg1 {[%clk 0:01:13.7]} 27...
Rf2 {[%clk 0:00:09.1]} 28. Qc5+ {[%clk 0:01:07.1]} 28... Ke8 {[%clk 0:00:04.7]}
29. Qb5+ {[%clk 0:01:02.3]} 29... Ke7 {[%clk 0:00:02.5]} 30. Nc6+ {[%clk
0:01:01.6]} 1-0

[Event "Betsys MČR v online bleskovém šachu 2021"]
[Site "Chess.com"]
[Date "2021.04.17"]
[Round "4"]
[White "TrickyPeat"]
[Black "LightningAttack_2000"]
[Result "1-0"]
[WhiteElo "2215"]
[BlackElo "1898"]
[TimeControl "180+1"]
[EndTime "9:36:17 PDT"]
[Termination "Uživatel TrickyPeat zvítězil po vzdání soupeře"]

1. e4 {[%clk 0:02:53.6]} 1... c5 {[%clk 0:02:59.6]} 2. Nf3 {[%clk 0:02:51.6]}
2... e6 {[%clk 0:02:59.1]} 3. d3 {[%clk 0:02:50.7]} 3... Nc6 {[%clk 0:02:57.1]}
4. Nbd2 {[%clk 0:02:50.4]} 4... a6 {[%clk 0:02:53.9]} 5. g3 {[%clk 0:02:50.1]}
5... Qc7 {[%clk 0:02:52.4]} 6. Bg2 {[%clk 0:02:49.9]} 6... d6 {[%clk 0:02:50.4]}
7. O-O {[%clk 0:02:49.4]} 7... Nf6 {[%clk 0:02:49.7]} 8. a4 {[%clk 0:02:48.8]}
8... Rb8 {[%clk 0:02:47]} 9. Re1 {[%clk 0:02:48]} 9... b5 {[%clk 0:02:45.9]} 10.
axb5 {[%clk 0:02:47]} 10... axb5 {[%clk 0:02:46]} 11. Nf1 {[%clk 0:02:43]} 11...
Be7 {[%clk 0:02:44.6]} 12. Bf4 {[%clk 0:02:38.7]} 12... Bb7 {[%clk 0:02:39.5]}
13. e5 {[%clk 0:02:36.7]} 13... Nd5 {[%clk 0:02:37.4]} 14. exd6 {[%clk
0:02:32.1]} 14... Bxd6 {[%clk 0:02:36.2]} 15. Bxd6 {[%clk 0:02:30.9]} 15... Qxd6
{[%clk 0:02:36.2]} 16. N1d2 {[%clk 0:02:28.3]} 16... Nf6 {[%clk 0:02:31.9]} 17.
Ng5 {[%clk 0:02:22.9]} 17... O-O {[%clk 0:02:27.6]} 18. Nge4 {[%clk 0:02:19.6]}
18... Nxe4 {[%clk 0:02:27.1]} 19. Nxe4 {[%clk 0:02:18.3]} 19... Qe7 {[%clk
0:02:27.1]} 20. Qh5 {[%clk 0:02:10.8]} 20... c4 {[%clk 0:02:12.9]} 21. dxc4
{[%clk 0:01:49.1]} 21... bxc4 {[%clk 0:02:12.2]} 22. c3 {[%clk 0:01:32]} 22...
Ba8 {[%clk 0:02:07.3]} 23. Re2 {[%clk 0:00:42.5]} 23... Rfd8 {[%clk 0:01:49.7]}
24. Ng5 {[%clk 0:00:36.2]} 24... h6 {[%clk 0:01:45.6]} 25. Ne4 {[%clk
0:00:31.2]} 25... Bb7 {[%clk 0:01:37.2]} 26. h4 {[%clk 0:00:22.4]} 26... Ra8
{[%clk 0:01:36]} 27. Rxa8 {[%clk 0:00:19.4]} 27... Rxa8 {[%clk 0:01:35.6]} 28.
Qb5 {[%clk 0:00:18.7]} 28... Rb8 {[%clk 0:01:29.4]} 29. Qxc4 {[%clk 0:00:16.9]}
29... Na5 {[%clk 0:01:22.6]} 30. Qc5 {[%clk 0:00:16.6]} 30... Qxc5 {[%clk
0:01:16]} 31. Nxc5 {[%clk 0:00:16.2]} 31... Bxg2 {[%clk 0:01:15.9]} 32. Kxg2
{[%clk 0:00:16.2]} 32... Nc4 {[%clk 0:01:16.1]} 33. b4 {[%clk 0:00:15.6]} 33...
Kf8 {[%clk 0:01:09.5]} 34. Ra2 {[%clk 0:00:14.6]} 34... Ke7 {[%clk 0:01:01.9]}
35. Ra7+ {[%clk 0:00:13.5]} 35... Kf6 {[%clk 0:01:02]} 36. Nd7+ {[%clk
0:00:12.4]} 1-0

[Event "Betsys MČR v online bleskovém šachu 2021"]
[Site "Chess.com"]
[Date "2021.04.17"]
[Round "4"]
[White "TerezaRodshtein"]
[Black "KatkaZ"]
[Result "1-0"]
[WhiteElo "2186"]
[BlackElo "1872"]
[TimeControl "180+1"]
[EndTime "9:36:17 PDT"]
[Termination "Uživatel TerezaRodshtein zvítězil na čas"]

1. e4 {[%clk 0:03:00.9]} 1... c5 {[%clk 0:02:59.7]} 2. Nf3 {[%clk 0:03:00.4]}
2... e6 {[%clk 0:03:00.1]} 3. d4 {[%clk 0:02:59.7]} 3... cxd4 {[%clk 0:03:00.1]}
4. Nxd4 {[%clk 0:03:00.1]} 4... a6 {[%clk 0:03:00.7]} 5. Bd3 {[%clk 0:02:58.8]}
5... Qc7 {[%clk 0:03:01]} 6. O-O {[%clk 0:02:54.7]} 6... g6 {[%clk 0:03:01]} 7.
f4 {[%clk 0:02:34.2]} 7... d6 {[%clk 0:03:00.1]} 8. Be3 {[%clk 0:02:30.2]} 8...
Bg7 {[%clk 0:02:59]} 9. Nd2 {[%clk 0:02:23.7]} 9... Nd7 {[%clk 0:02:58]} 10. Qe2
{[%clk 0:02:16.9]} 10... Ngf6 {[%clk 0:02:56]} 11. N2f3 {[%clk 0:02:10.6]} 11...
Ng4 {[%clk 0:02:50]} 12. Bd2 {[%clk 0:02:10.1]} 12... O-O {[%clk 0:02:42.5]} 13.
h3 {[%clk 0:02:06.2]} 13... Ngf6 {[%clk 0:02:41.8]} 14. Rad1 {[%clk 0:01:48]}
14... b5 {[%clk 0:02:40.6]} 15. c3 {[%clk 0:01:46]} 15... Bb7 {[%clk 0:02:37.4]}
16. Bb1 {[%clk 0:01:34.3]} 16... e5 {[%clk 0:02:17.1]} 17. Nb3 {[%clk
0:01:25.2]} 17... Rad8 {[%clk 0:01:55.6]} 18. Qf2 {[%clk 0:01:11.6]} 18... Nxe4
{[%clk 0:01:47.6]} 19. Bxe4 {[%clk 0:01:10.3]} 19... Bxe4 {[%clk 0:01:47]} 20.
Ng5 {[%clk 0:00:54.1]} 20... Bd5 {[%clk 0:01:35.1]} 21. f5 {[%clk 0:00:52.9]}
21... h6 {[%clk 0:01:19.6]} 22. Nf3 {[%clk 0:00:49.7]} 22... Bc4 {[%clk
0:00:50.9]} 23. Rfe1 {[%clk 0:00:48.9]} 23... d5 {[%clk 0:00:11.3]} 24. Qh4
{[%clk 0:00:47.1]} 1-0